bitfinex/quotes_ETHUSD_20230405
["timestamp","ask_amount","ask_price","bid_price","bid_amount"]
[1680704458582,0.53588152,1898.7,1898.0,2.4296]
[1680704458984,0.53588152,1898.7,1898.0,3.72253217]
[1680704459150,0.53588152,1898.7,1898.1,3.0]
[1680704459818,0.53588152,1898.7,1898.0,2.4376]
[1680704459819,2.63428255,1898.6,1898.0,0.008]
[1680704460108,8.1668707,1898.6,1897.8,2.23]
[1680704460287,0.81668707,1898.5,1897.8,3.0]
[1680704460485,3.45096962,1898.5,1897.8,3.006]
[1680704460812,3.45096962,1898.5,1897.8,0.006]
[1680704460970,3.45096962,1898.5,1897.7,3.54303977]
[1680704461171,0.34509696,1898.4,1897.7,3.54303977]
[1680704461377,0.34509696,1898.4,1897.7,3.56313333]
[1680704461583,2.63428255,1898.3,1897.8,3.0]
[1680704461776,13.18539696,1898.4,1897.8,0.006]
[1680704462008,13.18539696,1898.4,1897.8,4.90979588]
[1680704462160,12.8403,1898.4,1897.9,5.65437399]
[1680704462367,12.8403,1898.4,1897.9,7.88137399]
[1680704462588,12.8403,1898.4,1897.9,4.88137399]
[1680704462787,12.8403,1898.4,1898.0,3.0]
[1680704463884,12.8403,1898.4,1898.0,3.7941374]
[1680704464057,12.8403,1898.4,1898.0,0.7941374]
[1680704464258,12.8403,1898.4,1897.9,4.88137399]
[1680704464494,12.8403,1898.4,1897.9,4.87937399]
[1680704464697,12.8403,1898.4,1897.9,2.24509144]
[1680704464907,12.8403,1898.4,1897.9,0.02609144]
[1680704465059,12.8403,1898.4,1897.9,0.02009144]
[1680704465263,1.28403,1898.3,1897.9,0.02009144]
[1680704465810,2.63428255,1898.2,1897.8,0.006]
[1680704466104,2.63428255,1898.2,1897.5,0.006]
[1680704466311,0.26342826,1898.1,1897.3,2.225]
[1680704467579,2.63428255,1898.2,1897.3,4.85928255]
[1680704467928,6.97003,1898.3,1897.4,4.85328255]
[1680704468127,6.97003,1898.3,1897.5,3.214]
[1680704468422,6.97003,1898.3,1897.6,4.79925199]
[1680704468623,6.97603,1898.3,1897.6,2.219]
[1680704468829,0.697603,1898.2,1897.4,2.221]
[1680704468994,0.703603,1898.2,1897.4,4.85328255]
[1680704469322,0.0703603,1898.1,1897.4,4.85328255]
[1680704469625,0.0703603,1898.1,1897.4,2.219]
[1680704470685,2.70464285,1898.1,1897.4,2.219]
[1680704470995,2.89503285,1898.1,1897.4,2.219]
[1680704471198,2.89503285,1898.1,1897.3,2.219]
[1680704471385,0.28950329,1898.0,1897.3,2.219]
[1680704471797,8.11328255,1897.9,1897.1,0.002]
[1680704472024,8.68474826,1897.8,1896.7,2.215]
[1680704472234,2.63428255,1897.7,1896.8,2.63428255]
[1680704472539,0.26342826,1897.6,1896.8,2.63428255]
[1680704472701,0.26342826,1897.6,1896.8,0.02010309]
[1680704472702,3.08215081,1897.6,1896.8,0.02010309]
[1680704473138,2.89771081,1897.6,1896.8,0.02010309]
[1680704473730,0.37299697,1897.5,1896.8,0.02010309]
[1680704473914,0.70006775,1897.5,1896.8,0.02010309]
[1680704474120,0.88451775,1897.5,1896.8,0.02010309]
[1680704474287,13.1731,1897.4,1896.8,0.02010309]
[1680704474627,13.1751,1897.4,1896.8,0.02010309]
[1680704475491,13.1751,1897.4,1896.8,2.65438564]
[1680704475690,13.1811,1897.4,1896.8,3.19240989]
[1680704476624,13.1811,1897.4,1896.8,0.55812734]
[1680704476786,13.35956,1897.4,1896.8,0.02010309]
[1680704477122,13.72848,1897.4,1896.6,0.006]
[1680704477331,1.741798,1897.3,1896.5,0.008]
[1680704477513,0.18449,1897.2,1896.4,2.219]
[1680704477715,0.1926288,1897.2,1896.5,2.214]
[1680704478893,1.372848,1897.3,1896.6,2.21]
[1680704479288,4.00713055,1897.3,1896.5,5.227]
[1680704479524,4.00713055,1897.3,1896.5,5.221]
[1680704479727,1.372848,1897.3,1896.6,2.219]
[1680704480593,1.372848,1897.3,1896.7,0.02010416]
[1680704480796,1.372848,1897.3,1896.7,2.24210416]
[1680704482203,1.372848,1897.3,1896.7,4.87638671]
[1680704482435,18.9569,1897.4,1896.7,4.87638671]
[1680704482939,18.9569,1897.4,1896.7,0.02010416]
[1680704483137,18.9509,1897.4,1896.7,0.02010416]
[1680704483612,19.13536,1897.4,1896.7,0.02010416]
[1680704483814,21.58518255,1897.4,1896.7,0.02010416]
[1680704484020,2.15851825,1897.3,1896.7,0.02010416]
[1680704484543,4.7928008,1897.3,1896.7,0.02010416]
[1680704487708,1.0,1897.2,1896.3,3.008]
[1680704488010,1.0,1897.2,1896.2,2.88802565]
[1680704488011,2.222,1896.5,1896.2,0.002]
[1680704488347,13.4697,1896.4,1895.6,0.13473645]
[1680704488519,13.6939,1896.4,1895.6,0.006]
[1680704488706,13.6939,1896.4,1895.5,2.69069127]
[1680704488907,13.6939,1896.4,1895.6,0.26846913]
[1680704489111,13.6939,1896.4,1895.6,0.27446913]
[1680704489304,13.6939,1896.4,1895.6,2.49646913]
[1680704489801,16.88186255,1896.4,1895.6,0.006]
[1680704490007,16.88186255,1896.4,1895.5,0.63891149]
[1680704490717,8.11328255,1896.3,1895.5,0.1]
[1680704490921,0.18458,1896.2,1895.5,0.1]
[1680704491350,12.20403881,1896.3,1895.5,0.1]
[1680704491507,1.69018626,1896.3,1895.5,0.12011688]
[1680704491703,1.68818626,1896.3,1895.5,0.12011688]
[1680704491906,1.68818626,1896.3,1895.5,0.37757288]
[1680704492721,1.68503952,1896.3,1895.5,0.38357288]
[1680704493045,1.68503952,1896.3,1895.5,3.01785543]
[1680704493219,1.68503952,1896.3,1895.6,0.30178554]
[1680704493546,13.6939,1896.4,1895.7,2.63428255]
[1680704493839,13.87846,1896.4,1895.7,2.64028255]
[1680704494850,13.6939,1896.4,1895.7,2.64028255]
[1680704495658,13.65626,1896.4,1895.7,2.64028255]
[1680704495939,18.51054255,1896.4,1895.7,0.006]
[1680704496247,18.51054255,1896.4,1895.5,0.106]
[1680704496547,1.85105426,1896.3,1895.5,2.82664571]
[1680704496841,4.23762426,1896.3,1895.5,2.82664571]
[1680704497752,4.23762426,1896.3,1895.5,0.19236316]
[1680704497955,4.60675426,1896.3,1895.5,0.106]
[1680704498533,4.23762426,1896.3,1895.5,0.106]
[1680704499355,4.05305426,1896.3,1895.5,0.106]
[1680704499855,2.22,1896.2,1895.5,0.106]
[1680704500032,2.62259,1896.1,1895.5,0.106]
[1680704500246,2.40059,1896.1,1895.5,0.106]
[1680704500429,2.216,1896.1,1895.5,0.106]
[1680704500635,2.38658,1896.2,1895.5,0.106]
[1680704500859,0.238658,1896.1,1895.5,0.106]
[1680704501323,0.423248,1896.1,1895.5,0.106]
[1680704501521,0.238658,1896.1,1895.5,0.106]
[1680704501722,0.423248,1896.1,1895.5,0.106]
[1680704501953,1.0,1896.0,1895.5,0.106]
[1680704502121,0.1,1895.9,1895.5,0.106]
[1680704502320,10.76053055,1896.1,1895.5,0.106]
[1680704502551,2.647248,1896.1,1895.5,0.106]
[1680704502718,2.645248,1896.1,1895.5,0.106]
[1680704503322,2.645248,1896.1,1895.5,0.1]
[1680704503861,0.2645248,1896.0,1895.5,0.1]
[1680704504360,0.4491248,1896.0,1895.5,0.1]
[1680704505825,0.2645248,1896.0,1895.5,0.1]
[1680704506037,2.645248,1896.1,1895.5,0.1]
[1680704506246,0.423248,1896.1,1895.5,0.1]
[1680704509073,12.9421,1895.9,1895.5,0.106]
[1680704509254,14.46643418,1895.9,1895.5,0.106]
[1680704509849,12.9441,1895.9,1895.5,0.106]
[1680704511362,12.9441,1895.9,1895.5,1.106]
[1680704511661,0.002,1895.9,1895.5,1.106]
[1680704511865,5.5602,1896.2,1895.5,1.106]
[1680704512026,5.5602,1896.2,1895.6,0.1106]
[1680704512236,0.002,1896.2,1895.6,0.1166]
[1680704512544,13.11942527,1896.4,1895.6,0.1166]
[1680704512762,13.12142527,1896.4,1895.6,0.1166]
[1680704512967,1.31214253,1896.3,1895.6,0.1166]
[1680704513534,1.31214253,1896.3,1895.6,0.13671582]
[1680704515064,3.52914253,1896.3,1895.6,0.02611582]
[1680704515270,2.202,1896.2,1895.6,0.02011582]
[1680704515642,4.85628255,1896.1,1895.5,0.106]
[1680704515837,5.07648255,1896.1,1895.5,0.106]
[1680704516039,5.07848255,1896.1,1895.5,0.106]
[1680704516359,2.207,1896.0,1895.5,0.106]
[1680704516878,12.8312,1895.9,1895.5,0.1]
[1680704517047,13.0539,1895.9,1895.5,0.1]
[1680704517741,0.2227,1895.9,1895.5,0.1]
[1680704517941,2.85498255,1895.9,1895.5,0.1]
[1680704518288,0.2207,1895.9,1895.5,0.1]
[1680704518580,5.5909,1896.1,1895.5,0.1]
[1680704518737,5.5909,1896.1,1895.5,0.106]
[1680704518939,5.5909,1896.1,1895.5,0.19923573]
[1680704519729,0.002,1896.1,1895.5,0.19923573]
[1680704519932,38.31027,1896.3,1895.5,0.19923573]
[1680704520132,11.01455255,1896.3,1895.5,0.19923573]
[1680704520429,12.1529198,1896.3,1895.5,0.19923573]
[1680704521572,11.9683498,1896.3,1895.5,0.19923573]
[1680704521787,11.9683498,1896.3,1895.5,5.04587666]
[1680704521788,5.9797,1896.3,1895.5,5.04587666]
[1680704521992,5.9797,1896.3,1895.5,5.04787666]
[1680704522848,6.16427,1896.3,1895.5,2.82587666]
[1680704523049,5.9797,1896.3,1895.6,0.28258767]
[1680704525371,5.9797,1896.3,1895.6,1.28258767]
[1680704525748,5.9797,1896.3,1895.6,0.28258767]
[1680704528037,0.261198,1896.9,1895.7,2.63428255]
[1680704528283,0.54596858,1897.2,1896.5,1.101]
[1680704528448,0.004,1897.3,1896.6,1.101]
[1680704528779,6.85344,1897.7,1896.6,1.23120522]
[1680704528949,2.14638893,1897.6,1896.7,0.12312052]
[1680704529148,0.691344,1897.6,1896.8,1.112]
[1680704529359,0.685344,1897.6,1896.7,0.12312052]
[1680704529563,6.164344,1897.6,1896.8,0.02010309]
[1680704529769,6.166344,1897.6,1896.8,0.02010309]
[1680704529946,6.350784,1897.6,1896.8,0.02010309]
[1680704530276,0.687344,1897.6,1896.8,0.02010309]
[1680704530480,0.685344,1897.6,1896.8,0.1328134]
[1680704531244,5.553,1897.7,1896.8,0.1328134]
[1680704531774,5.553,1897.7,1896.8,1.2448134]
[1680704531977,5.553,1897.7,1896.9,1.112]
[1680704532193,0.002,1897.7,1897.0,5.85838352]
[1680704532396,5.80110001,1898.2,1897.1,0.81583835]
[1680704532693,5.80910001,1898.2,1897.2,2.63428255]
[1680704532841,5.80910001,1898.2,1897.3,2.48442826]
[1680704532842,6.94291001,1898.2,1897.3,2.48442826]
[1680704533046,6.94891001,1898.2,1897.3,5.48442826]
[1680704533266,6.94891001,1898.2,1897.3,5.48642826]
[1680704533470,1.06454315,1898.1,1897.4,0.54864283]
[1680704533672,1.06454315,1898.1,1897.4,3.54864283]
[1680704534246,9.1778257,1898.1,1897.4,0.54864283]
[1680704534446,9.1798257,1898.1,1897.3,0.006]
[1680704534643,9.1798257,1898.1,1897.1,6.02683835]
[1680704534644,3.55226512,1898.0,1897.1,6.02683835]
[1680704534882,3.55226512,1898.0,1897.1,8.4311209]
[1680704535088,3.55226512,1898.0,1897.1,6.2281209]
[1680704535446,0.37289451,1897.9,1897.1,6.2281209]
[1680704535653,0.39251596,1897.9,1897.2,0.62281209]
[1680704535872,0.91798257,1898.0,1897.2,0.62281209]
[1680704536045,0.91798257,1898.0,1897.2,3.2771935]
[1680704536250,0.694891,1898.1,1897.2,3.2771935]
[1680704537689,4.85528255,1898.0,1897.2,0.64291095]
[1680704537991,4.85528255,1898.0,1897.2,0.02009886]
[1680704537992,2.63428255,1898.0,1897.2,0.02009886]
[1680704538287,0.696891,1898.1,1897.3,2.221]
[1680704538485,0.694891,1898.1,1897.4,0.2221]
[1680704539385,0.694891,1898.1,1897.4,0.24219673]
[1680704539592,5.80910001,1898.2,1897.4,3.24219673]
[1680704539765,8.44338256,1898.2,1897.4,3.24219673]
[1680704540688,13.92238256,1898.2,1897.4,3.02009673]
[1680704540897,14.10076256,1898.2,1897.4,0.02009673]
[1680704541984,13.91638256,1898.2,1897.4,0.02009673]
[1680704542208,1.39163826,1898.1,1897.4,0.02009673]
[1680704544206,5.80910001,1898.2,1897.4,0.02009673]
[1680704544370,5.80310001,1898.2,1897.4,0.02009673]
[1680704545383,8.43738256,1898.2,1897.4,0.02009673]
[1680704545922,16.13738256,1898.2,1897.4,0.02009673]
[1680704546290,1.61373826,1898.1,1897.4,0.02009673]
[1680704547697,16.20258255,1898.0,1897.4,0.02009673]
[1680704548019,16.20458255,1898.0,1897.4,0.02009673]
[1680704548710,0.36144412,1897.9,1897.4,0.02009673]
[1680704548916,0.421803,1897.8,1897.4,0.02009673]
[1680704550990,3.05608555,1897.8,1897.3,0.52622875]
[1680704551189,0.30560856,1897.7,1897.2,0.006]
[1680704551402,0.30560856,1897.7,1897.1,3.006]
[1680704552418,0.421803,1897.8,1897.2,2.63428255]
[1680704552723,0.41892372,1897.8,1897.2,2.64028255]
[1680704553394,0.41892372,1897.8,1897.3,0.23]
[1680704553598,0.41892372,1897.8,1897.4,4.85528255]
[1680704553828,0.41892372,1897.8,1897.5,0.23]
[1680704554013,0.41892372,1897.8,1897.5,0.006]
[1680704554207,0.41892372,1897.8,1897.4,0.006]
[1680704554399,0.41892372,1897.8,1897.4,0.33530282]
[1680704556510,0.41892372,1897.8,1897.4,0.006]
[1680704556886,0.41892372,1897.8,1897.3,0.006]
[1680704557110,0.41892372,1897.8,1897.2,0.006]
[1680704557316,0.41892372,1897.8,1897.2,0.3066]
[1680704559333,0.41892372,1897.8,1897.6,2.63428255]
[1680704559487,0.28742106,1897.8,1897.7,8.08528255]
[1680704559685,0.11000001,1898.2,1897.8,1.0]
[1680704559916,0.11000001,1898.3,1897.8,1.0]
[1680704559917,0.0773525,1898.3,1897.9,2.433]
[1680704560096,0.0773525,1898.3,1897.9,5.433]
[1680704560314,0.0773525,1898.3,1897.9,3.002]
[1680704560511,0.0773525,1898.3,1897.8,0.008]
[1680704560686,0.0773525,1898.3,1897.6,0.006]
[1680704560892,0.0773525,1898.3,1897.6,2.87028255]
[1680704561112,0.0773525,1898.3,1897.7,3.28702826]
[1680704561596,0.0773525,1898.3,1897.7,0.28702826]
[1680704561800,0.00262738,1897.7,1897.6,0.23]
[1680704561992,0.00262738,1897.7,1897.5,3.006]
[1680704562330,0.00262738,1897.7,1897.6,0.3006]
[1680704562529,0.00262738,1897.7,1897.4,0.02009673]
[1680704563031,0.00262738,1897.7,1897.4,2.23809673]
[1680704563921,0.00262738,1897.7,1897.4,0.02009673]
[1680704564227,0.00262738,1897.7,1897.4,0.1227064]
[1680704564612,0.00262738,1897.7,1897.4,2.75698895]
[1680704564923,0.00262738,1897.7,1897.5,3.0]
[1680704566228,0.00262738,1897.7,1897.6,1.0]
[1680704566428,0.00262738,1897.7,1897.6,1.23]
[1680704566631,0.00262738,1897.7,1897.6,2.13692826]
[1680704566794,0.00262738,1897.7,1897.6,1.13692826]
[1680704566997,0.00262738,1897.7,1897.6,3.77121081]
[1680704568030,0.00062738,1897.7,1897.6,16.68621081]
[1680704568232,5.6148,1899.0,1897.7,1.0]
[1680704568531,6.349,1899.0,1898.0,2.221]
[1680704568737,13.5961,1898.9,1897.9,5.221]
[1680704569029,7.7,1898.6,1897.9,3.002]
[1680704569334,2.223,1898.6,1897.9,3.02609144]
[1680704569495,2.213,1898.8,1897.9,0.02009144]
[1680704569696,2.63428255,1898.7,1897.9,0.02009144]
[1680704569908,0.008,1898.8,1898.0,2.63428255]
[1680704570202,14.42331,1898.9,1898.1,0.23]
[1680704570499,14.42331,1898.9,1897.9,2.24309144]
[1680704570500,4.27948255,1898.8,1897.9,0.02209144]
[1680704570695,2.205,1898.7,1897.9,2.88437399]
[1680704570894,1.6512,1898.8,1898.0,3.0]
[1680704570895,1.6532,1898.8,1898.0,3.0]
[1680704571091,0.16512,1898.7,1898.0,6.27643029]
[1680704571297,1.6512,1898.8,1898.1,0.23]
[1680704572129,1.6452,1898.8,1898.1,0.23]
[1680704572331,1.6452,1898.8,1898.1,0.88084303]
[1680704572532,13.6041,1898.9,1898.2,2.65437081]
[1680704572731,13.6041,1898.9,1898.3,0.23]
[1680704572946,13.5981,1898.9,1898.3,3.23]
[1680704573131,13.6041,1898.9,1898.3,3.77710883]
[1680704575037,13.6041,1898.9,1898.3,6.41139138]
[1680704575335,13.5981,1898.9,1898.3,6.41939138]
[1680704575551,0.002,1898.9,1898.4,3.27622169]
[1680704575735,0.002,1898.9,1898.5,3.0]
[1680704575736,12.7484,1898.9,1898.5,3.0]
[1680704576041,12.7564,1898.9,1898.5,3.0]
[1680704576239,12.7564,1898.9,1898.5,3.62842217]
[1680704576436,12.7564,1898.9,1898.5,0.62842217]
[1680704576739,12.7504,1898.9,1898.3,3.008]
[1680704576941,12.7504,1898.9,1898.2,3.008]
[1680704577236,12.7504,1898.9,1898.3,2.63428255]
[1680704577449,12.7504,1898.9,1898.2,6.45288]
[1680704577748,12.7504,1898.9,1898.2,9.08716255]
[1680704578048,12.7504,1898.9,1898.3,0.23]
[1680704578244,12.7564,1898.9,1898.3,1.16171626]
[1680704578714,12.7564,1898.9,1898.2,3.44688]
[1680704578909,12.7504,1898.9,1898.2,3.44488]
[1680704579108,12.7504,1898.9,1898.1,0.008]
[1680704579329,12.7504,1898.9,1898.1,2.88437187]
[1680704580144,12.7504,1898.9,1898.2,3.0]
[1680704580342,12.7504,1898.9,1898.3,2.63428255]
[1680704580512,12.7504,1898.9,1898.4,0.49342826]
[1680704580513,12.7564,1898.9,1898.4,0.49342826]
[1680704580714,12.7564,1898.9,1898.4,3.12771081]
[1680704580918,0.008,1898.9,1898.5,2.63428255]
[1680704581232,13.1929,1899.1,1898.5,2.94705363]
[1680704581423,13.1949,1899.1,1898.5,2.94705363]
[1680704582855,13.1949,1899.1,1898.5,0.31277108]
[1680704583052,1.31949,1899.0,1898.4,0.49342826]
[1680704583258,1.31949,1899.0,1898.4,3.12771081]
[1680704583415,0.006,1899.0,1898.4,3.12771081]
[1680704583623,13.1949,1899.1,1898.4,3.12771081]
[1680704584259,13.1949,1899.1,1898.5,2.63428255]
[1680704584433,13.1949,1899.1,1898.6,0.23]
[1680704584755,13.1949,1899.1,1898.4,0.26542826]
[1680704584956,15.07106,1899.1,1898.4,2.89771081]
[1680704585529,15.07106,1899.1,1898.4,3.41228587]
[1680704586958,15.07106,1899.1,1898.5,2.63428255]
[1680704587151,13.1949,1899.1,1898.6,0.23]
[1680704587344,0.008,1899.1,1898.7,2.63428255]
[1680704587550,0.11600001,1899.5,1898.7,2.63428255]
[1680704587732,0.11600001,1899.5,1898.8,0.49342826]
[1680704587938,0.11600001,1899.5,1898.8,3.12771081]
[1680704588138,13.4509,1899.4,1898.8,2.86428255]
[1680704588338,13.4589,1899.4,1898.8,2.86428255]
[1680704588936,13.4029,1899.4,1898.8,2.87028255]
[1680704589921,13.4029,1899.4,1898.9,2.63428255]
[1680704590162,13.4029,1899.4,1899.0,0.49342826]
[1680704590322,13.4029,1899.4,1899.0,3.12771081]
[1680704590527,13.4029,1899.4,1899.0,3.13371081]
[1680704591747,13.4029,1899.4,1899.0,0.49942826]
[1680704591943,13.4029,1899.4,1898.8,0.006]
[1680704592462,13.4029,1899.4,1898.7,0.006]
[1680704592765,13.4029,1899.4,1898.7,2.64028255]
[1680704593065,1.34029,1899.3,1898.7,2.64028255]
[1680704594167,1.34029,1899.3,1898.8,3.0]
[1680704594331,1.34029,1899.3,1898.8,3.006]
[1680704594527,1.34029,1899.3,1898.8,0.006]
[1680704594732,3.56129,1899.3,1898.6,0.006]
[1680704594936,0.134029,1899.2,1898.6,0.006]
[1680704595235,0.134029,1899.2,1898.5,0.006]
[1680704595647,0.134029,1899.2,1898.5,3.27002826]
[1680704595963,0.134029,1899.2,1898.5,3.29011335]
[1680704596731,0.134029,1899.2,1898.5,5.9243959]
[1680704597025,0.134029,1899.2,1898.5,5.9263959]
[1680704600956,0.134029,1899.2,1898.5,6.45196713]
[1680704601151,0.134029,1899.2,1898.6,3.27947926]
[1680704601351,1.34029,1899.3,1898.7,3.0]
[1680704601677,1.34029,1899.3,1898.7,3.006]
[1680704602761,1.34029,1899.3,1898.7,5.64028255]
[1680704602969,13.4029,1899.4,1898.7,5.64228255]
[1680704603339,13.4029,1899.4,1898.8,2.86428255]
[1680704603535,13.4029,1899.4,1898.8,2.87028255]
[1680704606258,0.002,1899.4,1898.8,3.96928255]
[1680704606459,0.11000001,1899.5,1898.9,1.52600912]
[1680704606665,0.11000001,1899.5,1899.0,2.86428255]
[1680704607463,0.11000001,1899.5,1899.1,4.12907875]
[1680704607674,0.11000001,1899.5,1899.2,2.86428255]
[1680704607972,0.11000001,1899.5,1899.3,0.28642826]
[1680704608375,0.11000001,1899.5,1899.2,0.236]
[1680704608569,0.11000001,1899.5,1899.2,0.23]
[1680704608772,0.11000001,1899.5,1899.1,0.25007875]
[1680704608973,0.11000001,1899.5,1899.1,3.26264771]
[1680704609159,0.11000001,1899.5,1899.1,3.26864771]
[1680704609490,0.11000001,1899.5,1899.1,0.006]
[1680704609660,0.11000001,1899.5,1899.0,0.5327853]
[1680704609879,0.11000001,1899.5,1899.0,3.16106785]
[1680704610081,0.11000001,1899.5,1899.0,3.16706785]
[1680704610280,0.11000001,1899.5,1899.0,3.51766746]
[1680704610575,0.11000001,1899.5,1899.1,2.63428255]
[1680704610899,0.11000001,1899.5,1899.0,0.88938491]
[1680704611104,0.29426001,1899.5,1899.0,3.16106785]
[1680704611266,0.11000001,1899.5,1899.0,3.16106785]
[1680704611467,0.29426001,1899.5,1899.0,3.16106785]
[1680704611901,0.29426001,1899.5,1899.0,0.5267853]
[1680704611902,0.36053501,1899.5,1899.0,0.5267853]
[1680704612073,0.36053501,1899.5,1898.9,0.02008086]
[1680704612279,0.36053501,1899.5,1898.9,2.88436341]
[1680704612479,0.17627501,1899.5,1898.9,3.59029975]
[1680704612680,0.11000001,1899.5,1898.9,3.59029975]
[1680704613089,2.74428256,1899.5,1898.9,0.02608086]
[1680704613294,1.21900001,1899.5,1898.8,0.006]
[1680704613516,1.21900001,1899.5,1898.8,2.93508255]
[1680704613677,0.11000001,1899.5,1898.9,3.0]
[1680704613883,0.11000001,1899.5,1898.9,5.64028255]
[1680704614080,0.11000001,1899.5,1898.9,5.64228255]
[1680704614283,0.11000001,1899.5,1899.0,0.56422825]
[1680704614484,0.11000001,1899.5,1899.0,0.79422825]
[1680704616517,0.11000001,1899.5,1899.1,2.63428255]
[1680704616670,0.1063458,1899.5,1899.2,0.23]
[1680704616874,0.1063458,1899.5,1899.2,3.26121081]
[1680704617374,0.1063458,1899.5,1899.2,0.62692826]
[1680704617573,0.1063458,1899.5,1899.2,2.86428255]
[1680704618013,0.1063458,1899.5,1899.2,2.87028255]
[1680704623119,0.1063458,1899.5,1899.3,2.63428255]
[1680704623314,0.1063458,1899.5,1899.4,0.23]
[1680704623525,0.1063458,1899.5,1899.4,2.86428255]
[1680704623698,0.1063458,1899.5,1899.4,0.236]
[1680704623896,0.1063458,1899.5,1899.3,0.006]
[1680704625016,0.1063458,1899.5,1899.2,3.16354262]
[1680704625187,0.1063458,1899.5,1899.2,3.48009688]
[1680704625594,0.1063458,1899.5,1899.2,0.84581433]
[1680704625788,0.1063458,1899.5,1899.2,0.52326007]
[1680704626002,0.1063458,1899.5,1899.1,0.006]
[1680704626222,0.1063458,1899.5,1899.1,2.86428255]
[1680704626395,0.1063458,1899.5,1899.1,0.006]
[1680704626591,0.1063458,1899.5,1899.0,0.59030806]
[1680704626924,0.1063458,1899.5,1899.1,2.69291336]
[1680704627105,0.1063458,1899.5,1899.1,2.69891336]
[1680704627626,0.1063458,1899.5,1899.2,0.23]
[1680704628038,0.1063458,1899.5,1899.2,2.86428255]
[1680704628221,0.1063458,1899.5,1899.3,0.28642826]
[1680704632128,0.1063458,1899.5,1899.3,0.29242826]
[1680704633311,0.1063458,1899.5,1899.3,0.006]
[1680704635715,0.1063458,1899.5,1899.4,2.63428255]
[1680704635932,8.2207262,1899.7,1899.5,0.606]
[1680704636236,4.30054508,1899.9,1899.7,1.032]
[1680704636401,2.98916853,1900.6,1899.9,5.83428255]
[1680704636402,0.30267965,1900.6,1899.9,5.83428255]
[1680704636609,0.01280002,1900.8,1900.0,3.0]
[1680704636815,0.11000001,1900.9,1900.4,1.108]
[1680704636998,0.11000001,1900.9,1900.5,0.23]
[1680704637402,0.11000001,1900.9,1900.4,0.23]
[1680704637836,0.11000001,1900.9,1900.3,0.76607718]
[1680704638034,0.11000001,1900.9,1900.3,0.23]
[1680704638205,0.11000001,1900.9,1900.3,2.63428255]
[1680704638400,0.11000001,1900.9,1900.3,0.28642826]
[1680704638606,0.11000001,1900.9,1900.2,0.23]
[1680704638802,0.11000001,1900.9,1900.1,1.108]
[1680704639008,1.108,1900.7,1899.9,3.008]
[1680704639217,0.1108,1900.6,1899.9,0.006]
[1680704639539,0.1108,1900.6,1899.8,2.12019136]
[1680704639737,0.1108,1900.6,1899.8,2.11819136]
[1680704639907,0.1108,1900.6,1899.9,0.23188943]
[1680704640104,0.1108,1900.6,1899.9,2.65435284]
[1680704640640,0.1108,1900.6,1900.0,2.63428255]
[1680704640943,0.11600001,1900.9,1900.1,3.25006817]
[1680704641143,0.11000001,1900.9,1900.2,2.63428255]
[1680704641446,0.11000001,1900.9,1900.3,3.49342826]
[1680704641743,0.11000001,1900.9,1900.4,2.63428255]
[1680704641921,0.11000001,1900.9,1900.3,3.26542826]
[1680704642116,0.11000001,1900.9,1900.4,3.0]
[1680704642317,0.11000001,1900.9,1900.2,0.002]
[1680704642544,0.11000001,1900.9,1900.1,3.0]
[1680704642545,1.108,1900.8,1900.1,3.0]
[1680704642753,0.1108,1900.7,1900.0,0.52477041]
[1680704642959,0.1108,1900.7,1900.0,0.51677041]
[1680704643251,0.1108,1900.7,1899.9,4.116]
[1680704643582,0.1108,1900.7,1899.9,7.37170169]
[1680704643750,0.1108,1900.7,1900.0,3.76235178]
[1680704644040,0.11000001,1900.9,1900.2,1.108]
[1680704644205,0.11000001,1900.9,1900.2,2.63428255]
[1680704644411,0.11000001,1900.9,1900.2,2.65434967]
[1680704644615,0.11000001,1900.9,1900.2,3.05378464]
[1680704645217,0.11000001,1900.9,1900.3,3.97228255]
[1680704645432,0.11000001,1900.9,1900.4,3.0]
[1680704645827,0.11000001,1900.9,1900.4,3.02006502]
[1680704646026,0.11000001,1900.9,1900.5,2.63428255]
[1680704646217,0.11000001,1900.9,1900.6,0.49342826]
[1680704646417,0.11000001,1900.9,1900.6,3.12771081]
[1680704646743,0.11000001,1900.9,1900.6,0.49342826]
[1680704646957,0.11000001,1900.9,1900.4,4.13006502]
[1680704647128,0.11000001,1900.9,1900.5,2.86428255]
[1680704647726,0.11000001,1900.9,1900.4,1.13006502]
[1680704647926,0.11000001,1900.9,1900.5,2.63428255]
[1680704648168,0.11000001,1900.9,1900.5,2.89971731]
[1680704648669,0.11000001,1900.9,1900.7,1.108]
[1680704648841,0.11000001,1900.9,1900.7,3.74228255]
[1680704649169,0.11000001,1900.9,1900.8,2.86428255]
[1680704649333,0.11000001,1900.9,1900.8,3.15071081]
[1680704650232,0.11000001,1900.9,1900.8,0.51642826]
[1680704650437,0.11000001,1900.9,1900.6,4.108]
[1680704650675,0.11000001,1900.9,1900.7,2.86428255]
[1680704651041,0.11000001,1900.9,1900.7,3.97228255]
[1680704651653,0.11000001,1900.9,1900.7,3.99234439]
[1680704651978,0.11000001,1900.9,1900.8,2.50723444]
[1680704652137,0.11000001,1900.9,1900.8,8.37151699]
[1680704652337,0.11000001,1900.9,1900.8,8.37351699]
[1680704652539,0.11000001,1900.9,1900.8,9.48051699]
[1680704654082,0.11000001,1900.9,1900.8,8.48051699]
[1680704654284,0.11000001,1900.9,1900.8,7.37251699]
[1680704655544,0.11000001,1900.9,1900.8,6.26551699]
[1680704656054,0.11000001,1900.9,1900.8,7.37351699]
[1680704659750,0.10723784,1900.9,1900.8,7.37351699]
[1680704663971,0.10723784,1900.9,1900.8,8.48151699]
[1680704664572,0.10723784,1900.9,1900.8,11.62551699]
[1680704664782,0.10723784,1900.9,1900.8,8.48151699]
[1680704666090,0.10723784,1900.9,1900.8,2.63628255]
[1680704666307,0.10723784,1900.9,1900.6,0.51686261]
[1680704666479,0.10723784,1900.9,1900.7,2.63428255]
[1680704667490,0.10723784,1900.9,1900.7,3.74228255]
[1680704667700,0.10723784,1900.9,1900.7,4.22751081]
[1680704668094,0.10723784,1900.9,1900.8,3.0]